bitfinex/quotes_SOLUSD_20241009
["timestamp","ask_amount","ask_price","bid_price","bid_amount"]
[1728506930727,15.5412,139.63,139.53,0.12549]
[1728506930941,7.1655,139.56,139.5,25.0885]
[1728506931131,7.1655,139.56,139.51,24.027864]
[1728506931740,23.902374,139.62,139.51,23.902374]
[1728506931945,24.027864,139.58,139.46,17.9255]
[1728506932119,7.1679,139.51,139.46,17.9255]
[1728506932321,7.168,139.51,139.44,13.3491]
[1728506932551,7.168,139.51,139.44,76.1777]
[1728506932866,17.9126,139.57,139.46,7.1703]
[1728506932867,7.167,139.53,139.46,7.1703]
[1728506933025,7.167,139.53,139.44,76.1777]
[1728506933026,20.0,139.54,139.45,87.9271]
[1728506933227,7.1676,139.52,139.46,7.1701]
[1728506933441,20.0,139.54,139.44,6.1777]
[1728506933645,7.1689,139.5,139.44,6.1777]
[1728506934222,7.1689,139.5,139.44,13.3492]
[1728506934543,7.1695,139.48,139.42,7.1724]
[1728506934728,7.1695,139.48,139.42,77.1724]
[1728506934934,7.1695,139.48,139.42,7.1724]
[1728506935845,7.1695,139.48,139.42,77.1724]
[1728506936346,20.0,139.52,139.46,23.902374]
[1728506936552,20.0,139.55,139.45,17.9269]
[1728506936855,20.0,139.53,139.38,77.1741]
[1728506937027,20.0,139.53,139.34,0.8353499]
[1728506937028,7.1732,139.41,139.36,17.9385]
[1728506937449,20.0,139.49,139.34,0.8353499]
[1728506937450,7.1737,139.4,139.34,0.8353499]
[1728506937646,6.0304,139.46,139.34,8.0119499]
[1728506937947,20.0,139.45,139.34,70.8353499]
[1728506938245,20.0,139.45,139.37,7.1751]
[1728506938445,20.0,139.45,139.38,7.1746]
[1728506938651,7.1715,139.44,139.38,7.1746]
[1728506938832,7.1709,139.46,139.38,87.9358]
[1728506939021,7.1709,139.46,139.34,0.8353499]
[1728506939022,20.0,139.47,139.34,70.8353499]
[1728506939228,20.0,139.47,139.34,0.8353499]
[1728506939229,6.5339,139.44,139.34,0.8353499]
[1728506939428,7.1756,139.36,139.34,0.8353499]
[1728506939834,20.0,139.41,139.34,0.8353499]
[1728506940047,20.0,139.4,139.35,7.1761]
[1728506940387,20.0,139.43,139.34,0.8353499]
[1728506940536,21.8217,139.5,139.38,7.1743]
[1728506940854,21.8217,139.5,139.38,70.0]
[1728506941157,15.4841,139.5,139.4,25.1066]
[1728506941355,7.1711,139.45,139.4,17.9335]
[1728506941537,7.1694,139.49,139.43,7.1719]
[1728506941740,33.2905,139.56,139.43,24.027864]
[1728506942045,6.2409,139.5,139.3,43.51151172]
[1728506942248,7.175,139.38,139.31,7.178]
[1728506942553,1.2592,139.48,139.37,70.0]
[1728506942857,22.9033,139.5,139.37,70.0]
[1728506942858,7.17,139.47,139.4,7.1735]
[1728506943026,22.9033,139.5,139.37,70.0]
[1728506943027,7.1706,139.46,139.39,7.174]
[1728506943233,1.2592,139.53,139.39,7.174]
[1728506943234,7.169,139.49,139.42,7.1725]
[1728506943449,1.2592,139.53,139.44,7.1714]
[1728506943758,15.3762,139.56,139.44,7.1714]
[1728506943965,15.3762,139.56,139.39,70.0]
[1728506944167,7.1684,139.5,139.43,7.1718]
[1728506944342,7.1679,139.51,139.45,7.1708]
[1728506944541,33.2896,139.56,139.44,87.9282]
[1728506944743,7.1681,139.51,139.44,25.0994]
[1728506945043,33.2896,139.56,139.44,17.9282]
[1728506945243,7.1684,139.5,139.44,17.9282]
[1728506945648,7.1681,139.51,139.44,25.0996]
[1728506945972,7.1685,139.5,139.44,25.0996]
[1728506946464,20.0,139.51,139.45,31.073274]
[1728506946672,20.0,139.51,139.44,17.9282]
[1728506946859,20.0,139.51,139.42,70.0]
[1728506947167,20.0,139.51,139.42,7.1725]
[1728506947168,7.169,139.49,139.42,7.1725]
[1728506947947,7.1701,139.47,139.4,25.1067]
[1728506948151,44.027864,139.52,139.4,17.9336]
[1728506948360,0.12549,139.49,139.34,7.0320499]
[1728506948576,7.1751,139.37,139.34,0.8353499]
[1728506948872,7.173,139.42,139.36,7.1756]
[1728506949049,20.0,139.43,139.35,87.9398]
[1728506949247,20.0,139.43,139.38,7.1744]
[1728506949439,7.172,139.43,139.38,7.1744]
[1728506949858,7.172,139.43,139.37,7.1751]
[1728506950373,20.0,139.47,139.39,7.1739]
[1728506950581,7.1715,139.44,139.38,25.1105]
[1728506950746,20.0,139.47,139.34,18.7758499]
[1728506950747,7.1736,139.4,139.34,18.7758499]
[1728506951074,27.1711,139.45,139.39,7.174]
[1728506951260,35.8418,139.51,139.37,17.9376]
[1728506951261,7.1705,139.46,139.4,7.1735]
[1728506951571,7.17,139.47,139.42,7.1724]
[1728506951750,7.1694,139.49,139.43,7.1719]
[1728506951951,7.1701,139.47,139.41,7.1725]
[1728506952140,6.3983,139.52,139.41,24.027864]
[1728506952344,7.1696,139.48,139.43,7.1718]
[1728506952572,7.1696,139.48,139.41,31.200364]
[1728506952757,17.9211,139.51,139.39,7.1736]
[1728506952951,17.9211,139.51,139.38,70.0]
[1728506952952,7.1709,139.46,139.38,70.0]
[1728506953155,7.1695,139.48,139.42,7.1725]
[1728506953355,20.0,139.49,139.42,17.9312]
[1728506953554,7.171,139.45,139.4,0.12549]
[1728506953771,20.0,139.5,139.42,7.1725]
[1728506953958,7.17,139.47,139.42,7.1725]
[1728506954160,7.17,139.47,139.42,0.12549]
[1728506954456,7.1695,139.48,139.42,7.29799]
[1728506954674,20.0,139.54,139.42,0.12549]
[1728506954971,0.12549,139.53,139.42,0.12549]
[1728506955168,7.1695,139.48,139.43,7.1719]
[1728506955424,20.0,139.51,139.42,7.29779]
[1728506955672,7.1685,139.5,139.45,7.171]
[1728506955847,7.17,139.47,139.43,17.9289]
[1728506956454,7.17,139.47,139.41,7.1725]
[1728506956664,7.1684,139.5,139.44,7.1713]
[1728506956850,289.5104,139.63,139.45,7.1709]
[1728506956851,7.168,139.51,139.45,7.1709]
[1728506957049,7.1687,139.5,139.45,7.1709]
[1728506957259,7.1679,139.52,139.46,7.1704]
[1728506957471,24.3106,139.57,139.48,7.1693]
[1728506957881,7.1674,139.52,139.47,25.0947]
[1728506958175,7.1664,139.54,139.48,24.027864]
[1728506958377,7.1658,139.56,139.5,7.1684]
[1728506958749,7.1662,139.55,139.5,7.1684]
[1728506959367,7.1649,139.57,139.52,7.1673]
[1728506959763,7.1645,139.58,139.52,7.1673]
[1728506959988,7.1656,139.56,139.51,23.902374]
[1728506960293,7.1664,139.54,139.48,31.196764]
[1728506960461,7.1663,139.55,139.49,7.1685]
[1728506960665,7.1667,139.54,139.49,7.1685]
[1728506960867,17.9107,139.59,139.5,0.12549]
[1728506961078,20.0,139.61,139.5,94.027864]
[1728506961286,39.031,139.62,139.5,94.027864]
[1728506961672,17.902,139.65,139.55,7.1658]
[1728506961963,7.1618,139.63,139.58,7.1643]
[1728506962391,7.1613,139.64,139.58,7.1643]
[1728506963264,17.898,139.69,139.59,23.902374]
[1728506963596,6.2994,139.72,139.58,70.0]
[1728506963597,24.1924,139.72,139.61,0.12549]
[1728506963763,35.7895,139.71,139.59,23.776884]
[1728506964096,7.1619,139.63,139.59,23.776884]
[1728506964390,17.8991,139.68,139.57,17.912]
[1728506964391,7.1623,139.62,139.57,25.0768]
[1728506964579,7.1623,139.62,139.58,23.902374]
[1728506965174,17.8991,139.68,139.58,23.902374]
[1728506965371,7.1617,139.64,139.58,31.066574]
[1728506965579,35.7895,139.71,139.56,0.12549]
[1728506965892,20.12549,139.66,139.53,70.0]
[1728506966090,20.12549,139.66,139.56,7.1653]
[1728506966091,7.163,139.61,139.56,7.1653]
[1728506966470,17.9022,139.65,139.54,17.9147]
[1728506966802,17.9022,139.65,139.56,7.1652]
[1728506966973,20.0,139.66,139.54,17.9147]
[1728506966974,7.1643,139.58,139.54,17.9147]
[1728506967179,7.1639,139.59,139.54,25.081]
[1728506967477,7.1645,139.58,139.54,17.9147]
[1728506967675,17.9085,139.6,139.51,33.4236]
[1728506968207,20.0,139.59,139.51,17.9194]
[1728506968374,7.1658,139.56,139.51,25.0873]
[1728506968565,7.1659,139.55,139.51,17.9194]
[1728506968767,20.0,139.59,139.51,17.9194]
[1728506969003,20.0,139.59,139.49,76.6473]
[1728506969198,7.167,139.53,139.49,6.6473]
[1728506969699,17.9117,139.58,139.49,6.6473]
[1728506969901,7.1659,139.55,139.5,8.6015883]
[1728506970209,17.9117,139.58,139.48,17.9236]
[1728506970510,17.9117,139.58,139.44,62.70855622]
[1728506970511,7.1684,139.5,139.45,25.0977]
[1728506970680,55.8206,139.59,139.45,17.9272]
[1728506970681,17.9168,139.54,139.45,17.9272]
[1728506971272,0.12549,139.58,139.47,7.1699]
[1728506971489,20.0,139.59,139.48,19.3568079]
[1728506971666,20.0,139.59,139.48,87.9232]
[1728506971667,17.9116,139.58,139.48,87.9232]
[1728506971881,7.1657,139.56,139.51,7.1675]
[1728506972082,6.3932,139.62,139.44,6.4467]
[1728506972306,7.1704,139.47,139.44,6.4467]
[1728506972471,17.9182,139.53,139.44,6.4467]
[1728506972667,17.9182,139.53,139.45,8.60477437]
[1728506972668,7.1684,139.5,139.45,8.60477437]
[1728506973174,7.1699,139.48,139.44,6.4467]
[1728506973495,17.9232,139.49,139.39,13.7771]
[1728506973678,7.1705,139.46,139.41,7.1729]
[1728506973998,20.0,139.51,139.42,71.43421355]
[1728506974175,20.0,139.51,139.42,87.9302]
[1728506974376,20.0,139.54,139.43,1.43393016]
[1728506974679,7.168,139.51,139.46,7.1703]
[1728506974884,7.1656,139.56,139.51,7.1674]
[1728506975074,7.1653,139.57,139.52,1.43333579]
[1728506975276,7.166,139.55,139.48,70.0]
[1728506975487,7.166,139.55,139.49,31.196764]
[1728506975695,7.166,139.55,139.5,7.1684]
[1728506975874,7.44237583,139.65,139.49,24.027864]
[1728506976088,17.9033,139.64,139.52,23.902374]
[1728506976393,7.1652,139.57,139.52,23.902374]
[1728506976571,6.3932,139.62,139.53,71.55857697]
[1728506976773,7.1643,139.58,139.54,0.12549]
[1728506977497,6.3932,139.62,139.54,18.04039]
[1728506977698,7.1634,139.6,139.55,7.1658]
[1728506977938,7.1628,139.61,139.56,7.1653]
[1728506978102,6.055,139.67,139.57,87.9119]
[1728506978274,7.1603,139.66,139.6,7.1632]
[1728506978475,253.7,139.74,139.6,17.9082]
[1728506978476,24.5201,139.71,139.6,17.9082]
[1728506978674,24.5201,139.71,139.62,7.1622]
[1728506978874,7.1603,139.66,139.6,25.0714]
[1728506979093,7.1597,139.68,139.61,7.28779]
[1728506979300,7.1598,139.67,139.61,7.28779]
[1728506979498,7.1592,139.69,139.63,7.1617]
[1728506979804,7.1598,139.67,139.62,7.1622]
[1728506980101,7.1592,139.68,139.63,1.43204319]
[1728506980408,24.5201,139.71,139.61,23.902374]
[1728506980700,24.5201,139.71,139.59,23.902374]
[1728506980996,35.7922,139.7,139.55,15.058]
[1728506981205,7.1637,139.6,139.55,85.058]
[1728506981371,7.1637,139.6,139.55,92.2238]
[1728506981575,7.1637,139.6,139.55,15.058]
[1728506981776,7.164,139.59,139.55,15.058]
[1728506981982,7.1632,139.61,139.55,77.1658]
[1728506982214,7.1633,139.6,139.55,7.1658]
[1728506982507,17.9043,139.64,139.53,93.9646]
[1728506982983,7.1638,139.6,139.54,7.1659]
[1728506983299,7.1679,139.51,139.44,24.3303]
[1728506983476,20.0,139.56,139.44,76.4025]
[1728506983687,7.1678,139.52,139.44,76.4025]
[1728506983881,20.0,139.56,139.44,76.4025]
[1728506984207,20.0,139.56,139.46,70.0]
[1728506984378,7.1681,139.51,139.44,76.4025]
[1728506984883,20.0,139.56,139.44,6.4025]
[1728506985438,7.1674,139.53,139.44,6.4025]
[1728506985576,7.1681,139.51,139.45,70.0]
[1728506985781,7.1681,139.51,139.44,6.4025]
[1728506985977,24.027864,139.55,139.44,6.4025]
[1728506986200,7.1688,139.5,139.43,85.3448]
[1728506986405,20.0,139.54,139.43,92.5167]
[1728506986698,7.168,139.51,139.43,92.5167]
[1728506987098,7.168,139.51,139.44,7.1713]
[1728506987402,7.168,139.51,139.45,23.902374]
[1728506987582,7.168,139.51,139.45,23.402374]
[1728506987782,7.1685,139.5,139.44,0.12549]
[1728506989604,7.1685,139.5,139.44,24.027864]
[1728506992595,7.1691,139.49,139.44,24.027864]
[1728506994114,20.0,139.53,139.44,23.902374]
[1728506994406,7.171,139.45,139.41,70.0]
[1728506994797,17.9242,139.48,139.41,70.0]
[1728506995003,7.1715,139.45,139.41,70.0]
[1728506995924,17.9242,139.48,139.41,23.776884]
[1728506996218,17.9242,139.48,139.38,110.3941]
[1728506996219,7.1721,139.43,139.38,103.2197]
[1728506996585,17.9274,139.46,139.38,15.2843]
[1728506996792,17.9274,139.46,139.36,76.3179]
[1728506996793,7.1737,139.4,139.36,6.3179]
[1728506997713,7.1737,139.4,139.35,7.176]
[1728506997714,7.1736,139.4,139.35,70.0]
[1728506998113,20.0,139.45,139.37,70.0]
[1728506998419,20.0,139.45,139.36,25.1135]
[1728506998715,17.9309,139.43,139.34,0.8353499]
[1728506998891,7.1741,139.39,139.34,0.8353499]
[1728506999214,17.9309,139.43,139.34,0.8353499]
[1728506999420,20.0,139.42,139.34,0.8353499]
[1728506999622,7.1757,139.36,139.34,0.8353499]
[1728506999792,17.9337,139.41,139.34,0.8353499]
[1728506999992,7.1746,139.38,139.35,1.43497889]
[1728507000215,7.1752,139.37,139.34,0.8353499]
[1728507000403,17.9337,139.41,139.34,0.8353499]
[1728507000604,7.1745,139.39,139.34,0.8353499]
[1728507000806,20.0,139.43,139.34,0.8353499]
[1728507001011,23.9991,139.44,139.35,70.0]
[1728507001204,7.1718,139.44,139.37,70.0]
[1728507001410,6.2677,139.48,139.37,70.0]
[1728507001696,7.1732,139.41,139.36,18.06449]
[1728507001896,7.172,139.44,139.38,23.776884]
[1728507002120,24.1924,139.48,139.37,0.25098]
[1728507002323,7.1741,139.4,139.35,70.0]
[1728507002529,20.0,139.45,139.36,25.46255812]
[1728507002700,7.171,139.45,139.4,23.776884]
[1728507002900,7.171,139.45,139.41,1.43427005]
[1728507003111,60.3126,139.52,139.42,7.1725]
[1728507003425,60.3126,139.52,139.43,1.43412891]
[1728507003426,6.5556,139.52,139.43,1.43412891]
[1728507003614,7.1685,139.5,139.44,100.947884]
[1728507003822,53.7439,139.56,139.45,17.927]
[1728507004015,53.7439,139.56,139.45,19.36080531]
[1728507004527,53.7439,139.56,139.44,70.12549]
[1728507004725,17.9172,139.54,139.44,93.902374]
[1728507004909,7.1689,139.5,139.44,101.073874]
[1728507005435,17.9172,139.54,139.44,93.902374]
[1728507005725,7.1695,139.48,139.44,93.902374]
[1728507005914,7.1704,139.47,139.44,23.776884]
[1728507006117,7.1706,139.46,139.43,23.776884]
[1728507006319,17.9196,139.52,139.37,28.7481]
[1728507006320,7.1726,139.42,139.37,28.7481]
[1728507006522,17.9269,139.46,139.37,21.573]
[1728507006720,17.9269,139.46,139.37,28.7478]
[1728507006721,7.1724,139.43,139.37,28.7478]
[1728507006913,20.0,139.48,139.39,70.0]
[1728507007112,7.1714,139.45,139.39,77.1741]
[1728507007618,7.1711,139.45,139.41,70.0]
[1728507008122,7.1711,139.45,139.4,24.027864]
[1728507008297,7.1704,139.47,139.4,24.027864]
[1728507008498,7.1695,139.48,139.42,31.199964]
[1728507008732,7.1695,139.48,139.44,24.027864]
[1728507009625,51.8659,139.59,139.41,70.0]
[1728507009808,51.8659,139.59,139.42,24.027864]
[1728507009809,7.1705,139.46,139.42,24.027864]
[1728507010324,7.1715,139.44,139.39,87.9351]
[1728507010527,17.9249,139.48,139.39,70.0]
[1728507010728,7.173,139.42,139.39,70.0]
[1728507010928,7.1719,139.44,139.39,77.174]
[1728507011101,17.9249,139.48,139.39,70.0]
[1728507011304,7.1728,139.42,139.39,70.0]
[1728507011729,7.1728,139.42,139.37,116.6842]
[1728507011917,17.9272,139.46,139.37,6.3338]
[1728507012117,79.876264,139.48,139.34,0.8353499]
[1728507012118,20.0,139.45,139.34,0.8353499]
[1728507012326,7.1729,139.42,139.36,77.1754]
[1728507012533,20.0,139.45,139.37,1.43457215]
[1728507012734,7.1733,139.41,139.36,70.0]
[1728507013234,7.1726,139.42,139.36,77.1752]
[1728507013432,17.9272,139.46,139.34,95.9529499]
[1728507013433,20.0,139.45,139.34,95.9529499]
[1728507013733,20.0,139.45,139.34,0.8353499]
[1728507013734,20.0,139.43,139.34,0.8353499]
[1728507014039,7.1741,139.39,139.34,78.0119499]
[1728507014232,7.1741,139.39,139.34,8.0119499]
[1728507014436,7.1747,139.38,139.34,0.8353499]
[1728507014937,20.0,139.43,139.34,0.8353499]
[1728507014938,7.1751,139.37,139.34,0.8353499]
[1728507015141,17.9327,139.41,139.34,0.8353499]
[1728507015321,7.1761,139.35,139.34,0.8353499]
[1728507015524,27.1761,139.35,139.34,0.8353499]
[1728507015910,27.1782,139.31,139.3,0.2]
[1728507016429,27.1792,139.29,139.17,114.63933829]
[1728507016745,27.1792,139.29,139.19,7.47833627]
[1728507016911,7.1816,139.25,139.19,7.47833627]
[1728507017118,20.0,139.29,139.19,7.47833627]
[1728507017439,7.181,139.26,139.19,7.47833627]
[1728507017613,20.0,139.29,139.17,26.67593829]
[1728507017614,7.1805,139.27,139.2,2.27187238]
[1728507017941,20.0,139.28,139.2,0.8353499]
[1728507018321,7.1818,139.24,139.2,0.8353499]
[1728507018531,0.12549,139.27,139.2,0.8353499]
[1728507018707,7.182,139.24,139.2,0.8353499]
[1728507018906,7.1832,139.22,139.2,0.8353499]
[1728507019358,20.25098,139.27,139.17,13.06473829]
[1728507019359,7.1849,139.18,139.17,13.06473829]
[1728507019570,27.1849,139.18,139.17,13.06473829]
[1728507019851,27.31039,139.18,139.17,13.06473829]
[1728507020057,27.43588,139.18,139.17,13.06473829]
[1728507020238,27.1849,139.18,139.17,13.06473829]
[1728507020425,42.3662,139.25,139.17,13.06473829]
[1728507020626,20.0,139.18,139.17,13.06473829]
[1728507020855,7.1848,139.19,139.17,13.06473829]
[1728507021429,7.1837,139.21,139.17,13.06473829]
[1728507021645,7.1826,139.23,139.17,13.06473829]
[1728507021850,7.1816,139.25,139.17,13.06473829]
[1728507022030,7.1806,139.27,139.18,7.1847]
[1728507022231,22.938,139.3,139.17,20.25003829]
[1728507022427,7.182,139.24,139.18,23.902374]
[1728507022732,7.1801,139.28,139.21,23.776884]
[1728507022933,7.1804,139.27,139.19,7.1842]
[1728507023228,6.4571,139.3,139.19,7.1842]
[1728507023229,6.4571,139.3,139.2,23.776884]
[1728507023430,6.4571,139.3,139.18,23.776884]
[1728507023665,7.1826,139.23,139.17,13.06473829]
[1728507023963,6.4571,139.3,139.17,13.06473829]
[1728507023964,20.0,139.27,139.17,13.06473829]
[1728507024330,7.1845,139.19,139.17,13.06473829]
[1728507024544,7.1834,139.21,139.17,13.06473829]
[1728507024741,7.1849,139.19,139.17,13.06473829]
[1728507024942,20.0,139.2,139.17,13.06473829]
[1728507025358,7.1849,139.18,139.17,13.06473829]
[1728507025657,7.1845,139.19,139.17,13.06473829]
[1728507025952,27.1845,139.19,139.17,13.06473829]
[1728507026155,17.9485,139.29,139.17,13.06473829]
[1728507026338,20.0,139.28,139.17,13.06473829]
[1728507026537,20.0,139.25,139.17,13.06473829]
[1728507026927,20.0,139.29,139.18,23.776884]
[1728507027136,20.0,139.29,139.17,13.06473829]
[1728507027342,7.1828,139.23,139.17,20.25003829]
[1728507027867,7.1846,139.19,139.17,13.06473829]
[1728507028733,17.9554,139.24,139.17,13.06473829]
[1728507028928,7.1829,139.22,139.17,13.06473829]
[1728507029141,7.184,139.2,139.17,13.06473829]
[1728507029538,7.1845,139.19,139.17,13.06473829]
[1728507032050,20.25098,139.18,139.17,13.06473829]
[1728507032239,7.1885,139.11,139.06,0.8353499]
[1728507032435,20.0,139.16,139.06,0.8353499]
[1728507032635,7.1904,139.08,139.06,0.8353499]
[1728507033073,18.09289,139.15,139.06,0.8353499]
[1728507033074,20.12549,139.14,139.06,0.8353499]
[1728507033267,7.1897,139.09,139.06,0.8353499]
[1728507033448,20.0,139.12,139.06,0.8353499]
[1728507033863,7.1892,139.1,139.06,0.8353499]
[1728507034170,7.1877,139.13,139.06,0.8353499]
[1728507034345,13.52455829,139.19,139.06,0.8353499]
[1728507034346,7.1872,139.14,139.06,0.8353499]
[1728507034664,17.9666,139.15,139.06,0.8353499]
[1728507034842,7.1893,139.1,139.06,0.8353499]
[1728507035047,20.0,139.18,139.06,0.8353499]
[1728507035363,20.0,139.13,139.06,0.8353499]
[1728507035565,7.1876,139.13,139.06,0.8353499]
[1728507035766,20.0,139.16,139.06,0.8353499]
[1728507035948,7.1872,139.14,139.06,8.0261499]
[1728507036150,7.1873,139.14,139.07,24.027864]
[1728507036349,6.4092,139.19,139.06,0.8353499]
[1728507036557,6.4092,139.19,139.07,24.027864]
[1728507036766,6.4092,139.19,139.06,8.0260499]
[1728507037075,7.1862,139.16,139.07,31.218164]
[1728507037281,6.0095,139.24,139.07,0.25098]
[1728507037451,7.1871,139.14,139.07,0.25098]
[1728507037845,7.1863,139.16,139.07,24.027864]
[1728507038048,7.1852,139.18,139.1,7.1889]
[1728507038264,7.1855,139.17,139.1,7.1889]
[1728507038447,6.0095,139.24,139.11,7.1884]
[1728507038448,7.1848,139.19,139.11,7.1884]
[1728507038649,7.1833,139.22,139.15,7.1864]
[1728507038861,6.2317,139.29,139.17,7.1852]
[1728507039058,7.1819,139.24,139.17,7.1852]
[1728507039372,6.2317,139.29,139.15,0.12549]
[1728507039675,42.1283,139.29,139.11,20.12549]
[1728507039975,7.1849,139.19,139.11,24.027864]
[1728507040568,20.12549,139.23,139.1,17.9722]
[1728507040752,20.25098,139.23,139.1,17.9722]
[1728507041246,7.1854,139.18,139.11,7.1884]
[1728507041440,7.1854,139.18,139.12,7.1879]
[1728507041648,20.0,139.2,139.1,17.9722]
[1728507041850,7.1848,139.19,139.12,7.188]
[1728507042048,7.1865,139.15,139.1,17.9722]
[1728507042270,7.1871,139.14,139.09,16.5078]
[1728507042475,0.25098,139.22,139.09,16.5078]
[1728507042772,7.1869,139.15,139.09,16.5078]
[1728507042976,7.1857,139.17,139.09,34.4814]
[1728507043277,7.46440698,139.3,139.09,34.4814]
[1728507043278,7.1848,139.19,139.12,17.9697]
[1728507043453,20.0,139.23,139.12,17.9697]
[1728507043771,7.1849,139.18,139.12,25.1572]
[1728507043972,7.1843,139.2,139.12,17.9697]
[1728507044275,7.1845,139.19,139.13,7.1873]
[1728507044675,7.1838,139.21,139.12,17.9697]
[1728507044883,20.0,139.25,139.12,17.9697]
[1728507045173,20.0,139.25,139.14,7.1869]
[1728507045174,17.954,139.25,139.14,7.1869]
[1728507045377,7.1818,139.24,139.18,7.1848]
[1728507045577,7.1819,139.24,139.17,7.1851]
[1728507045746,7.1807,139.27,139.18,17.9619]
[1728507045945,6.2317,139.29,139.18,25.1463]
[1728507046171,7.1818,139.24,139.18,25.1463]
[1728507046361,7.1789,139.3,139.21,17.958]
[1728507046569,7.1789,139.3,139.22,23.902374]
[1728507046759,7.178,139.32,139.25,7.1811]
[1728507047168,271.636,139.39,139.25,23.776884]
[1728507047373,24.1134,139.39,139.27,17.9503]
[1728507047553,7.177,139.34,139.28,7.1797]
[1728507047749,6.1774,139.39,139.28,23.776884]
[1728507048084,7.1728,139.42,139.35,7.1759]
[1728507048271,6.6388,139.44,139.33,18.19338]
[1728507048456,17.9257,139.47,139.34,7.1762]
[1728507048647,7.1729,139.42,139.36,7.1755]
[1728507050777,7.174,139.4,139.33,7.1771]
[1728507050976,20.0,139.43,139.32,17.9439]
[1728507051279,20.0,139.43,139.33,7.177]
[1728507051488,7.1775,139.33,139.24,17.9545]
[1728507051649,7.1788,139.3,139.24,17.9545]
[1728507051857,7.178,139.32,139.24,17.9545]
[1728507052155,7.176,139.36,139.29,7.1791]
[1728507052351,20.0,139.38,139.27,17.9497]
[1728507052549,42.2348,139.44,139.3,87.9458]
[1728507052780,7.1753,139.37,139.3,17.9458]
[1728507053085,7.1762,139.35,139.28,70.0]
[1728507053275,7.1762,139.35,139.29,0.12549]
[1728507053488,7.1773,139.33,139.26,17.9516]
[1728507053778,7.1768,139.34,139.27,7.1801]
[1728507054156,17.9362,139.39,139.26,87.9516]
[1728507054360,7.1762,139.35,139.28,7.1796]
[1728507054880,20.0,139.38,139.28,7.1796]
[1728507054881,7.1759,139.36,139.28,7.1794]
[1728507055056,7.1762,139.35,139.29,0.12549]
[1728507055251,7.1762,139.35,139.3,0.12549]
[1728507055581,20.0,139.38,139.29,0.12549]
[1728507055789,20.0,139.35,139.22,17.9563]
[1728507056080,7.1779,139.32,139.26,7.1807]
[1728507056473,20.0,139.35,139.26,7.1807]
[1728507056663,7.1772,139.33,139.27,7.1802]
[1728507057072,7.1777,139.32,139.26,7.1807]
[1728507057378,35.8704,139.4,139.23,7.1818]
[1728507057379,7.1787,139.3,139.23,7.1818]
[1728507057566,7.1793,139.29,139.23,7.1818]
[1728507057767,20.0,139.36,139.24,7.1818]
[1728507058664,7.1789,139.3,139.25,7.1813]
[1728507058865,7.1789,139.3,139.24,7.1818]
[1728507059072,7.1789,139.3,139.25,0.12549]
[1728507059367,7.1766,139.35,139.29,23.776884]
[1728507059712,35.8704,139.4,139.22,70.0]
[1728507059991,17.9406,139.35,139.2,70.0]
[1728507060288,7.1813,139.26,139.2,70.0]
[1728507060465,17.945,139.32,139.2,70.0]
[1728507060777,17.9401,139.36,139.23,70.0]
[1728507060986,17.9401,139.36,139.25,17.9532]
[1728507060987,7.1789,139.3,139.25,17.9532]
[1728507061175,17.9401,139.36,139.25,17.9532]
[1728507061176,7.1782,139.32,139.25,17.9532]
[1728507061358,53.8052,139.4,139.25,17.9532]